bitfinex/quotes_BTCUSD_20240811
["timestamp","ask_amount","ask_price","bid_price","bid_amount"]
[1723372049979,0.32613248,61207.0,61206.0,0.0019152]
[1723372050186,0.30573555,61207.0,61206.0,0.0019152]
[1723372050583,0.30673555,61207.0,61206.0,0.0019152]
[1723372050985,0.32214632,61207.0,61206.0,0.13762037]
[1723372051329,0.32214632,61207.0,61206.0,0.14485569]
[1723372051853,0.32214632,61207.0,61206.0,0.00915052]
[1723372052261,0.32214632,61207.0,61206.0,0.0019152]
[1723372052520,0.32030877,61207.0,61206.0,0.0019152]
[1723372052727,0.304898,61207.0,61206.0,0.0019152]
[1723372052968,0.3202934,61207.0,61206.0,0.0019152]
[1723372053490,0.77956773,61207.0,61206.0,0.0019152]
[1723372053914,0.82855372,61207.0,61206.0,0.0019152]
[1723372054090,0.99236864,61207.0,61206.0,0.0019152]
[1723372054297,0.94338265,61207.0,61206.0,0.0019152]
[1723372054913,1.99780267,61207.0,61206.0,0.0019152]
[1723372055114,2.09066862,61207.0,61206.0,0.0019152]
[1723372055337,1.90859293,61207.0,61206.0,0.0019152]
[1723372055544,2.00020448,61207.0,61206.0,0.0019152]
[1723372055946,1.43020448,61207.0,61206.0,0.0009152]
[1723372056172,1.43220448,61207.0,61206.0,0.0009152]
[1723372056284,1.55458463,61207.0,61206.0,0.0009152]
[1723372056499,1.55463861,61207.0,61206.0,0.0009152]
[1723372056695,1.55263861,61207.0,61206.0,0.0009152]
[1723372056898,1.55163861,61207.0,61206.0,0.0009152]
[1723372057101,1.55163861,61207.0,61206.0,0.0019152]
[1723372057102,1.52688381,61207.0,61206.0,0.0019152]
[1723372057503,1.52388381,61207.0,61206.0,0.0019152]
[1723372057923,1.53788381,61207.0,61206.0,0.0029152]
[1723372058374,1.40150366,61207.0,61206.0,0.0019152]
[1723372058984,1.41550366,61207.0,61206.0,0.0029152]
[1723372060084,1.41366611,61207.0,61206.0,0.0029152]
[1723372060363,1.41537469,61207.0,61206.0,0.0029152]
[1723372060687,1.51317148,61207.0,61206.0,0.0029152]
[1723372061010,1.49917148,61207.0,61206.0,0.0019152]
[1723372061412,1.51317148,61207.0,61206.0,0.0029152]
[1723372061612,1.48517148,61207.0,61206.0,0.0009152]
[1723372061874,1.49917148,61207.0,61206.0,0.0019152]
[1723372062081,1.51317148,61207.0,61206.0,0.0029152]
[1723372062371,1.49917148,61207.0,61206.0,0.0019152]
[1723372063268,1.51217148,61207.0,61206.0,0.0029152]
[1723372063843,2.10224913,61207.0,61206.0,0.0029152]
[1723372064367,2.05238972,61207.0,61206.0,0.0029152]
[1723372064571,2.00446004,61207.0,61206.0,0.0029152]
[1723372064814,2.10225683,61207.0,61206.0,0.0029152]
[1723372065183,2.10225304,61207.0,61206.0,0.0029152]
[1723372065656,2.10225973,61207.0,61206.0,0.0029152]
[1723372065860,2.1682077,61207.0,61206.0,0.0029152]
[1723372066086,2.04595809,61207.0,61206.0,0.0029152]
[1723372066688,2.04412054,61207.0,61206.0,0.0029152]
[1723372067298,2.29285254,61207.0,61206.0,0.0029152]
[1723372067499,2.31585254,61207.0,61206.0,0.0029152]
[1723372068683,2.08712054,61207.0,61206.0,0.0029152]
[1723372068884,2.20113494,61207.0,61206.0,0.0029152]
[1723372069413,2.07895809,61207.0,61206.0,0.0029152]
[1723372069621,2.08627037,61207.0,61206.0,0.0029152]
[1723372069824,1.93723688,61207.0,61206.0,0.0029152]
[1723372070027,1.92256,61207.0,61206.0,0.0029152]
[1723372070432,1.88837079,61207.0,61206.0,0.0029152]
[1723372070657,1.10967079,61207.0,61206.0,0.0029152]
[1723372073128,1.14356946,61207.0,61206.0,0.0029152]
[1723372074369,0.91483746,61207.0,61206.0,0.0029152]
[1723372074574,0.04492404,61207.0,61206.0,0.3120822]
[1723372074807,0.04492404,61207.0,61206.0,0.31937881]
[1723372075014,0.02966955,61207.0,61206.0,0.31937881]
[1723372075221,0.04492183,61207.0,61206.0,0.31937881]
[1723372075423,0.04308428,61207.0,61206.0,0.31937881]
[1723372075780,0.03008428,61207.0,61206.0,0.31837881]
[1723372076063,0.03208428,61207.0,61206.0,0.31837881]
[1723372076265,0.03392183,61207.0,61206.0,0.31837881]
[1723372076468,0.03208428,61207.0,61206.0,0.54711381]
[1723372076711,0.01808428,61207.0,61206.0,0.54611381]
[1723372077108,0.004832,61207.0,61206.0,0.54611381]
[1723372077517,0.01811804,61207.0,61206.0,0.54611381]
[1723372077672,0.01811804,61207.0,61206.0,0.31737881]
[1723372078240,0.01803776,61207.0,61206.0,0.31737881]
[1723372082047,0.01805423,61207.0,61206.0,0.31737881]
[1723372082426,0.01805423,61207.0,61206.0,0.20301181]
[1723372083531,0.01805423,61207.0,61206.0,0.31737881]
[1723372084487,0.01812043,61207.0,61206.0,0.31737881]
[1723372084896,0.01812032,61207.0,61206.0,0.31737881]
[1723372085401,0.002832,61207.0,61206.0,0.31737881]
[1723372087544,0.002832,61207.0,61206.0,0.20301181]
[1723372088223,0.002832,61207.0,61206.0,0.31737881]
[1723372088435,0.002832,61207.0,61206.0,0.20301181]
[1723372089226,0.002832,61207.0,61206.0,0.31737881]
[1723372092421,0.002832,61207.0,61206.0,0.20301181]
[1723372092636,0.002832,61207.0,61206.0,0.54611381]
[1723372092782,0.002832,61207.0,61206.0,1.30635749]
[1723372093970,0.002832,61207.0,61206.0,1.30835749]
[1723372094378,0.000832,61207.0,61206.0,1.30835749]
[1723372095151,0.000832,61207.0,61206.0,1.30834264]
[1723372095568,0.000832,61207.0,61206.0,1.17266632]
[1723372095696,0.000832,61207.0,61206.0,1.30834179]
[1723372096523,0.000832,61207.0,61206.0,1.30833884]
[1723372098851,0.000832,61207.0,61206.0,1.308342]
[1723372101303,0.000832,61207.0,61206.0,1.90466722]
[1723372101489,0.000832,61207.0,61206.0,1.95351012]
[1723372101722,0.000832,61207.0,61206.0,2.14729577]
[1723372102153,0.000832,61207.0,61206.0,1.90466722]
[1723372102413,0.000832,61207.0,61206.0,1.90566722]
[1723372102630,0.000832,61207.0,61206.0,1.90561966]
[1723372102856,0.000832,61207.0,61206.0,1.91061966]
[1723372103187,0.000832,61207.0,61206.0,1.89045721]
[1723372103609,0.000832,61207.0,61206.0,1.91061966]
[1723372106106,0.000832,61207.0,61206.0,1.91061866]
[1723372106526,0.000832,61207.0,61206.0,1.53756377]
[1723372106722,0.000832,61207.0,61206.0,1.91061807]
[1723372107944,0.000832,61207.0,61206.0,1.89045562]
[1723372108151,0.000832,61207.0,61206.0,1.91061807]
[1723372108744,0.000832,61207.0,61206.0,1.74104793]
[1723372109789,0.000832,61207.0,61206.0,1.74104987]
[1723372110827,0.000832,61207.0,61206.0,1.73778228]
[1723372111497,0.000832,61207.0,61206.0,1.66995358]
[1723372112250,0.000832,61207.0,61206.0,1.64979113]
[1723372112483,0.000832,61207.0,61206.0,1.66995358]
[1723372112920,0.000832,61207.0,61206.0,1.90735082]
[1723372113101,0.000832,61207.0,61206.0,1.73778067]
[1723372113859,0.000832,61207.0,61206.0,1.53429618]
[1723372115121,0.000832,61207.0,61206.0,1.54084018]
[1723372117464,0.000832,61207.0,61206.0,1.77823876]
[1723372117637,0.000832,61207.0,61206.0,1.84606672]
[1723372118094,0.000832,61207.0,61206.0,1.7104106]
[1723372118304,0.000832,61207.0,61206.0,1.93810991]
[1723372118852,0.000832,61207.0,61206.0,1.74432325]
[1723372119303,0.000832,61207.0,61206.0,1.93810991]
[1723372120165,0.000832,61207.0,61206.0,1.79314781]
[1723372120395,0.000832,61207.0,61206.0,1.98689228]
[1723372120795,0.000832,61207.0,61206.0,1.93806908]
[1723372120997,0.000832,61207.0,61206.0,1.98690291]
[1723372121963,0.000832,61207.0,61206.0,1.98390291]
[1723372122173,0.001832,61207.0,61206.0,2.01029072]
[1723372122629,0.001832,61207.0,61206.0,1.94206908]
[1723372123084,0.001832,61207.0,61206.0,1.93706908]
[1723372123467,0.000832,61207.0,61206.0,2.09963456]
[1723372123677,0.001832,61207.0,61206.0,2.10763456]
[1723372123868,0.001832,61207.0,61206.0,2.12163456]
[1723372123869,0.002832,61207.0,61206.0,2.12163456]
[1723372124089,0.001832,61207.0,61206.0,2.11363456]
[1723372124877,0.001832,61207.0,61206.0,2.18661496]
[1723372125126,0.001832,61207.0,61206.0,2.18661408]
[1723372125343,0.002832,61207.0,61206.0,2.20061408]
[1723372125513,0.002832,61207.0,61206.0,2.12734049]
[1723372125713,0.002832,61207.0,61206.0,2.20062467]
[1723372126256,0.002832,61207.0,61206.0,2.42946306]
[1723372126435,0.002832,61207.0,61206.0,2.48139536]
[1723372126605,0.002832,61207.0,61206.0,2.49120845]
[1723372127342,0.002832,61207.0,61206.0,2.48139536]
[1723372127553,0.002832,61207.0,61206.0,2.46123291]
[1723372127676,0.002832,61207.0,61206.0,2.60780127]
[1723372127901,0.002832,61207.0,61206.0,2.46119739]
[1723372128110,0.002832,61207.0,61206.0,2.60774616]
[1723372128305,0.002832,61207.0,61206.0,2.60773389]
[1723372128505,0.002832,61207.0,61206.0,2.46119739]
[1723372128704,0.002832,61207.0,61206.0,2.48135984]
[1723372128929,0.002832,61207.0,61206.0,2.68993239]
[1723372129339,0.001832,61207.0,61206.0,2.67593239]
[1723372129556,0.000832,61207.0,61206.0,2.66193239]
[1723372129896,0.001832,61207.0,61206.0,2.68993239]
[1723372130054,0.001832,61207.0,61206.0,2.68993148]
[1723372130269,0.000832,61207.0,61206.0,2.67593148]
[1723372130454,0.000832,61207.0,61206.0,2.66193148]
[1723372131251,0.000832,61207.0,61206.0,2.68209393]
[1723372131451,0.000832,61207.0,61206.0,2.11552666]
[1723372131772,0.000832,61207.0,61206.0,2.69558186]
[1723372132423,0.000832,61207.0,61206.0,2.70958186]
[1723372133515,0.000832,61207.0,61206.0,2.45784686]
[1723372133722,0.000832,61207.0,61206.0,2.26304686]
[1723372134149,0.1931284,61211.0,61210.0,1.05924]
[1723372134346,0.1931284,61211.0,61210.0,1.96241204]
[1723372134549,0.1931284,61211.0,61210.0,1.89637013]
[1723372135152,0.1931284,61211.0,61210.0,1.89590199]
[1723372135640,0.1931284,61211.0,61210.0,1.79966714]
[1723372135835,0.1931284,61211.0,61210.0,1.98323445]
[1723372136026,0.1931284,61211.0,61210.0,1.96323445]
[1723372136192,0.1056284,61211.0,61210.0,1.88993253]
[1723372136514,0.0875,61214.0,61213.0,0.800481]
[1723372136722,0.0875,61214.0,61213.0,1.67881868]
[1723372136895,0.0875,61214.0,61213.0,1.68607543]
[1723372137096,0.1958,61214.0,61213.0,1.68607543]
[1723372137516,0.1958,61214.0,61213.0,1.71052801]
[1723372138409,0.1958,61214.0,61213.0,1.74790617]
[1723372138951,0.1958,61214.0,61213.0,1.74786519]
[1723372139152,0.1958,61214.0,61213.0,1.75986519]
[1723372140322,0.1958,61214.0,61213.0,1.76986519]
[1723372140529,0.1958,61214.0,61213.0,1.75986519]
[1723372141140,0.1958,61214.0,61213.0,1.66212929]
[1723372141297,0.1958,61214.0,61213.0,1.16437723]
[1723372141504,0.1958,61214.0,61213.0,1.66235841]
[1723372142124,0.1958,61214.0,61213.0,1.78472569]
[1723372142324,0.1958,61214.0,61213.0,1.76027054]
[1723372142537,0.1958,61214.0,61213.0,1.78472569]
[1723372142729,0.1958,61214.0,61213.0,2.01335767]
[1723372143375,0.1958,61214.0,61213.0,1.89099039]
[1723372144639,0.1083,61214.0,61213.0,1.89099039]
[1723372144837,0.1083,61214.0,61213.0,1.89098435]
[1723372145323,0.1083,61214.0,61213.0,1.72142648]
[1723372145534,0.1083,61214.0,61213.0,1.89098731]
[1723372145732,0.1083,61214.0,61213.0,1.89098997]
[1723372145922,0.109132,61214.0,61213.0,1.89098997]
[1723372146098,0.109132,61214.0,61213.0,1.87798997]
[1723372146503,0.109132,61214.0,61213.0,1.89098997]
[1723372146936,0.109132,61214.0,61213.0,1.87898997]
[1723372147139,0.109132,61214.0,61213.0,1.89098997]
[1723372147518,0.109132,61214.0,61213.0,1.88373322]
[1723372147723,0.109132,61214.0,61213.0,1.87801176]
[1723372148163,0.109132,61214.0,61213.0,1.89101176]
[1723372148583,0.109132,61214.0,61213.0,1.89097605]
[1723372148908,0.109132,61214.0,61213.0,1.87797605]
[1723372149019,0.109132,61214.0,61213.0,1.86597605]
[1723372149237,0.109132,61214.0,61213.0,1.89097605]
[1723372150943,0.109132,61214.0,61213.0,1.89097586]
[1723372152108,0.109132,61214.0,61213.0,1.89097868]
[1723372152575,0.109132,61214.0,61213.0,1.86597868]
[1723372152777,0.109132,61214.0,61213.0,1.87597868]
[1723372152995,0.109132,61214.0,61213.0,1.90097868]
[1723372153385,0.109132,61214.0,61213.0,1.88897868]
[1723372153590,0.109132,61214.0,61213.0,1.89097868]
[1723372154154,0.000832,61214.0,61213.0,1.89097868]
[1723372154356,0.000832,61214.0,61213.0,1.87797868]
[1723372154766,0.000832,61214.0,61213.0,1.89197868]
[1723372155200,0.000832,61214.0,61213.0,1.87797868]
[1723372155498,0.000832,61214.0,61213.0,1.87997868]
[1723372155716,0.000832,61214.0,61213.0,1.82611667]
[1723372155926,0.000832,61214.0,61213.0,1.89394099]
[1723372156329,0.000832,61214.0,61213.0,1.89395778]
[1723372157348,0.000832,61214.0,61213.0,1.87995778]
[1723372157680,0.000832,61214.0,61213.0,1.89395778]
[1723372158332,0.000832,61214.0,61213.0,1.87995778]
[1723372158977,0.000832,61214.0,61213.0,1.89395778]
[1723372159347,0.000832,61214.0,61213.0,1.86613348]
[1723372159551,0.000832,61214.0,61213.0,1.88013348]
[1723372160838,0.000832,61214.0,61213.0,1.89413348]
[1723372161234,0.000832,61214.0,61213.0,1.88013348]
[1723372161613,0.000832,61214.0,61213.0,1.89413348]
[1723372162074,0.000832,61214.0,61213.0,1.88013348]
[1723372162414,0.000832,61214.0,61213.0,1.89413348]
[1723372164475,0.000832,61214.0,61213.0,1.99634785]
[1723372164952,0.000832,61214.0,61213.0,1.89413348]
[1723372165554,0.000832,61214.0,61213.0,1.99634785]
[1723372166223,0.000832,61214.0,61213.0,1.89413348]
[1723372166420,0.000832,61214.0,61213.0,1.99634805]
[1723372166623,0.000832,61214.0,61213.0,1.99634868]
[1723372166820,0.000832,61214.0,61213.0,1.89413437]
[1723372167034,0.000832,61214.0,61213.0,1.89384691]
[1723372167553,0.000832,61214.0,61213.0,1.99606213]
[1723372168138,0.000832,61214.0,61213.0,1.58606145]
[1723372168344,0.000832,61214.0,61213.0,1.98140212]
[1723372168566,0.000832,61214.0,61213.0,1.99540212]
[1723372168931,0.000832,61214.0,61213.0,1.98140212]
[1723372169330,0.000832,61214.0,61213.0,1.99540212]
[1723372169511,0.000832,61214.0,61213.0,1.98140212]
[1723372169711,0.000832,61214.0,61213.0,1.99540212]
[1723372170032,0.000832,61214.0,61213.0,1.41649868]
[1723372170219,0.000832,61214.0,61213.0,1.98142978]
[1723372170420,0.000832,61214.0,61213.0,1.99542978]
[1723372172580,0.000832,61214.0,61213.0,1.99542843]
[1723372173356,0.000832,61214.0,61213.0,1.75794015]
[1723372173560,0.000832,61214.0,61213.0,1.99532576]
[1723372173967,0.000832,61214.0,61213.0,1.75794015]
[1723372174136,0.000832,61214.0,61213.0,1.99532537]
[1723372175148,0.000832,61214.0,61213.0,2.14236758]
[1723372175527,0.000832,61214.0,61213.0,2.14238211]
[1723372175929,0.000832,61214.0,61213.0,1.99532537]
[1723372176737,0.000832,61214.0,61213.0,2.1423912]
[1723372176925,0.000832,61214.0,61213.0,1.99532537]
[1723372177124,0.000832,61214.0,61213.0,2.14239447]
[1723372177547,0.000832,61214.0,61213.0,2.14235292]
[1723372177726,0.000832,61214.0,61213.0,2.14235183]
[1723372177922,0.000832,61214.0,61213.0,1.90497042]
[1723372178177,0.000832,61214.0,61213.0,1.99527663]
[1723372178526,0.000832,61214.0,61213.0,2.14237884]
[1723372179030,0.000832,61214.0,61213.0,1.99527663]
[1723372179224,0.000832,61214.0,61213.0,1.99527791]
[1723372181376,0.000832,61214.0,61213.0,1.99523822]
[1723372182811,0.000832,61214.0,61213.0,2.42014722]
[1723372183014,0.000832,61214.0,61213.0,2.44030967]
[1723372183219,0.000832,61214.0,61213.0,2.64711887]
[1723372183414,0.000832,61214.0,61213.0,2.66728132]
[1723372183773,0.000832,61214.0,61213.0,2.64711887]
[1723372183978,0.000832,61214.0,61213.0,2.66728132]
[1723372184174,0.000832,61214.0,61213.0,2.40614722]
[1723372184372,0.000832,61214.0,61213.0,2.39214722]
[1723372184813,0.000832,61214.0,61213.0,2.29035408]
[1723372185050,0.000832,61214.0,61213.0,2.3920785]
[1723372185277,0.000832,61214.0,61213.0,2.4060785]
[1723372185649,0.000832,61214.0,61213.0,2.4200785]
[1723372186036,0.000832,61214.0,61213.0,2.4060785]
[1723372186854,0.000832,61214.0,61213.0,2.1913695]
[1723372187014,0.000832,61214.0,61213.0,2.1773695]
[1723372187222,0.000832,61214.0,61213.0,2.1633695]
[1723372187421,0.000832,61214.0,61213.0,2.1773695]
[1723372187938,0.000832,61214.0,61213.0,2.1913695]
[1723372188345,0.000832,61214.0,61213.0,2.1773695]
[1723372188567,0.000832,61214.0,61213.0,2.19137488]
[1723372188761,0.000832,61214.0,61213.0,2.19137713]
[1723372188958,0.000832,61214.0,61213.0,2.19495569]
[1723372189158,0.000832,61214.0,61213.0,2.19460639]
[1723372189587,0.000832,61214.0,61213.0,1.99840639]
[1723372189787,0.000832,61214.0,61213.0,2.14547812]
[1723372189987,0.000832,61214.0,61213.0,1.99840639]
[1723372190614,0.000832,61214.0,61213.0,1.99840908]
[1723372192180,0.000832,61214.0,61213.0,1.4304553]
[1723372192391,0.000832,61214.0,61213.0,1.99485156]
[1723372195128,0.000832,61214.0,61213.0,1.60232764]
[1723372195329,0.000832,61214.0,61213.0,1.50011242]
[1723372195894,0.000832,61214.0,61213.0,1.5001854]
[1723372196188,0.000832,61214.0,61213.0,1.62274547]
[1723372196541,0.000832,61214.0,61213.0,1.5001854]
[1723372197312,0.000832,61214.0,61213.0,1.62273898]
[1723372198735,0.26927846,61214.0,61213.0,0.83661198]
[1723372198913,0.26927846,61214.0,61213.0,0.28524239]
[1723372199120,0.26927846,61214.0,61213.0,0.51395139]
[1723372199302,0.26927846,61214.0,61213.0,0.37829816]
[1723372199490,0.26927846,61214.0,61213.0,0.51396999]
[1723372199692,0.27111601,61214.0,61213.0,0.15690699]
[1723372199906,0.27111601,61214.0,61213.0,0.25726154]
[1723372200118,0.27111601,61214.0,61213.0,0.27026154]
[1723372200434,0.61417301,61214.0,61213.0,0.15690754]
[1723372200610,0.62986049,61214.0,61213.0,0.02123516]
[1723372200814,0.62986049,61214.0,61213.0,0.02023516]
[1723372201020,0.62802294,61214.0,61213.0,0.02023516]
[1723372201223,1.02238041,61214.0,61213.0,0.03123516]
[1723372201428,1.12238041,61214.0,61213.0,0.03123516]
[1723372201622,1.40009328,61214.0,61213.0,0.02023516]
[1723372201830,1.33539793,61214.0,61213.0,0.02023516]
[1723372202040,1.36111625,61214.0,61213.0,0.00723516]
[1723372202237,1.43462806,61214.0,61213.0,0.01723516]
[1723372202673,1.4100058,61214.0,61213.0,0.00723516]
[1723372203287,1.1813008,61214.0,61213.0,0.00723516]
[1723372203489,1.13241125,61214.0,61213.0,0.00723516]
[1723372204150,1.36111625,61214.0,61213.0,0.00723516]
[1723372204368,1.13241125,61214.0,61213.0,0.00723516]
[1723372204578,1.36111625,61214.0,61213.0,0.00723516]
[1723372204984,1.3592787,61214.0,61213.0,0.00723516]
[1723372205225,1.1305737,61214.0,61213.0,0.00723516]
[1723372205730,1.13042369,61214.0,61213.0,0.00723516]
[1723372206273,1.35912869,61214.0,61213.0,0.00723516]
[1723372206990,1.13226124,61214.0,61213.0,0.00723516]
[1723372207453,0.31483786,61214.0,61213.0,0.00723516]
[1723372207657,0.18926955,61214.0,61213.0,0.00723516]
[1723372208210,0.18926955,61214.0,61213.0,0.12158916]
[1723372211024,0.187432,61214.0,61213.0,0.12158916]
[1723372211189,0.187432,61214.0,61213.0,0.12258916]
[1723372212037,0.18926955,61214.0,61213.0,0.12258916]
[1723372212237,0.000832,61214.0,61213.0,0.35129816]
[1723372212421,0.000832,61214.0,61213.0,0.58000716]
[1723372212620,0.000832,61214.0,61213.0,0.35129816]
[1723372213077,0.000832,61214.0,61213.0,0.35029816]
[1723372213514,0.000832,61214.0,61213.0,0.35229816]
[1723372214136,0.000832,61214.0,61213.0,0.00923516]
[1723372214137,0.188832,61214.0,61213.0,0.00923516]
[1723372214362,0.303184,61214.0,61213.0,0.00923516]
[1723372214508,0.303184,61214.0,61213.0,0.00723516]
[1723372214509,0.92624647,61214.0,61213.0,0.00723516]
[1723372215190,1.48365647,61214.0,61213.0,0.00723516]
[1723372215354,0.45355155,61204.0,61192.0,0.0009141]
[1723372215598,1.15425247,61204.0,61192.0,0.0009141]
[1723372215793,1.16963922,61204.0,61192.0,0.0009141]
[1723372216124,1.16780167,61204.0,61192.0,0.0009141]
[1723372216335,1.16780751,61204.0,61192.0,0.0009141]
[1723372217201,1.16780751,61204.0,61203.0,0.0029141]
[1723372217596,1.19080751,61204.0,61203.0,0.0029141]
[1723372218352,1.74080751,61204.0,61203.0,0.0029141]
[1723372218554,1.850948,61204.0,61203.0,0.0029141]
[1723372219607,2.2438407,61204.0,61203.0,0.0029141]
[1723372220025,2.22844811,61204.0,61203.0,0.0029141]
[1723372220241,2.31923547,61204.0,61203.0,0.0029141]
[1723372220440,2.31923547,61204.0,61203.0,0.0019141]
[1723372220657,2.22844811,61204.0,61203.0,0.0009141]
[1723372220897,2.11383037,61204.0,61203.0,0.0009141]
[1723372221091,1.52975463,61204.0,61203.0,0.0019141]
[1723372221540,1.53159218,61204.0,61203.0,0.0019141]
[1723372221956,1.6770771,61204.0,61203.0,0.0029141]
[1723372222870,1.80577969,61204.0,61203.0,0.0029141]
[1723372223134,1.83761724,61204.0,61203.0,0.0029141]
[1723372223335,1.73218075,61204.0,61203.0,0.0029141]
[1723372223919,1.72218075,61204.0,61203.0,0.0029141]
[1723372224092,1.72223857,61204.0,61203.0,0.0029141]
[1723372224295,2.41040102,61204.0,61203.0,0.0029141]
[1723372224472,0.99295355,61195.0,61192.0,0.0009141]
[1723372224674,1.88524103,61195.0,61192.0,0.0009141]
[1723372224877,1.29524103,61195.0,61192.0,0.0009141]
[1723372225078,1.29340348,61195.0,61192.0,0.0009141]
[1723372226109,1.30124103,61195.0,61194.0,0.0019141]
[1723372226898,1.04946503,61195.0,61194.0,0.0019141]
[1723372227118,1.06346503,61195.0,61194.0,0.0019141]
[1723372227299,1.29224103,61195.0,61194.0,0.0019141]
[1723372227499,1.07329943,61195.0,61194.0,0.0019141]
[1723372228161,1.07338255,61195.0,61194.0,0.0019141]
[1723372228361,1.07338253,61195.0,61194.0,0.0019141]
[1723372228777,1.06738253,61195.0,61194.0,0.0009141]
[1723372229109,1.08038253,61195.0,61194.0,0.0019141]
[1723372229311,1.06738253,61195.0,61194.0,0.0009141]
[1723372229516,1.05338253,61195.0,61194.0,0.0009141]
[1723372229721,1.06438253,61195.0,61194.0,0.0019141]
[1723372229926,1.67738253,61195.0,61194.0,0.0019141]
[1723372230383,1.67638253,61195.0,61194.0,0.0019141]
[1723372230896,1.68638253,61195.0,61194.0,0.0019141]
[1723372231115,1.30515853,61195.0,61194.0,0.0019141]
[1723372231317,1.07638253,61195.0,61194.0,0.0019141]
[1723372231559,1.29215853,61195.0,61194.0,0.0009141]
[1723372231766,1.06338253,61195.0,61194.0,0.0009141]
[1723372231971,1.07338253,61195.0,61194.0,0.0009141]
[1723372232176,1.07328657,61195.0,61194.0,0.0009141]
[1723372232354,1.06328657,61195.0,61194.0,0.0009141]
[1723372232581,1.05882687,61195.0,61194.0,0.0009141]
[1723372232756,1.06428711,61195.0,61194.0,0.0009141]
[1723372232970,1.29306311,61195.0,61194.0,0.0009141]
[1723372233176,1.30306311,61195.0,61194.0,0.0019141]
[1723372233383,1.29206311,61195.0,61194.0,0.0019141]
[1723372233500,1.29022556,61195.0,61194.0,0.0019141]
[1723372233704,1.28022556,61195.0,61194.0,0.0009141]
[1723372234208,1.29222556,61195.0,61194.0,0.0019141]
[1723372234608,1.44628567,61195.0,61194.0,0.0019141]
[1723372234760,1.46028567,61195.0,61194.0,0.0029141]
[1723372234965,1.44628567,61195.0,61194.0,0.0019141]
[1723372235164,1.67322412,61195.0,61194.0,0.0019141]
[1723372235374,1.31906311,61195.0,61194.0,0.0019141]
[1723372235779,1.32910406,61195.0,61194.0,0.0029141]
[1723372236210,1.31910406,61195.0,61194.0,0.0019141]
[1723372236751,2.03010406,61195.0,61194.0,0.0029141]
[1723372236931,2.19241621,61195.0,61194.0,0.0029141]
[1723372238118,2.19425376,61195.0,61194.0,0.0029141]
[1723372238316,1.33010406,61195.0,61194.0,0.0029141]
[1723372238522,1.95460287,61195.0,61194.0,0.0029141]
[1723372239505,1.95276532,61195.0,61194.0,0.0029141]
[1723372240146,1.95460287,61195.0,61194.0,0.0029141]
[1723372241831,1.95276532,61195.0,61194.0,0.0029141]
[1723372242446,1.97013771,61195.0,61194.0,0.0029141]
[1723372243144,1.94713771,61195.0,61194.0,0.0029141]
[1723372243343,1.93160287,61195.0,61194.0,0.0029141]
[1723372243551,1.92976532,61195.0,61194.0,0.0029141]
[1723372244526,1.95276532,61195.0,61194.0,0.0029141]
[1723372244724,2.15826772,61195.0,61194.0,0.0029141]
[1723372244912,1.99411802,61195.0,61194.0,0.0029141]
[1723372245114,1.99412068,61195.0,61194.0,0.0029141]
[1723372246207,2.24289668,61195.0,61194.0,0.0029141]
[1723372246423,2.27714515,61195.0,61194.0,0.0029141]
[1723372246640,2.45690527,61195.0,61194.0,0.0029141]
[1723372247562,2.45874282,61195.0,61194.0,0.0029141]
[1723372247768,2.45690527,61195.0,61194.0,0.0029141]
[1723372247966,2.46874282,61195.0,61194.0,0.0029141]
[1723372248541,2.45874282,61195.0,61194.0,0.0029141]
[1723372248745,2.45690527,61195.0,61194.0,0.0029141]
[1723372249073,2.45708622,61195.0,61194.0,0.0029141]
[1723372249316,2.45708322,61195.0,61194.0,0.0029141]
[1723372249521,2.45892077,61195.0,61194.0,0.0029141]
[1723372249937,2.45891069,61195.0,61194.0,0.0029141]
[1723372250547,2.45707314,61195.0,61194.0,0.0029141]
[1723372252799,2.46891069,61195.0,61194.0,0.0029141]
[1723372253003,2.42734816,61195.0,61194.0,0.0029141]
[1723372253213,2.46887782,61195.0,61194.0,0.0029141]
[1723372253731,2.04595212,61195.0,61194.0,0.0029141]
[1723372254137,2.02295212,61195.0,61194.0,0.0029141]
[1723372255625,2.04595212,61195.0,61194.0,0.0029141]
[1723372256792,2.0945399,61195.0,61194.0,0.0029141]
[1723372256989,2.09270235,61195.0,61194.0,0.0029141]
[1723372257190,2.0439662,61195.0,61194.0,0.0029141]
[1723372258170,2.04601293,61195.0,61194.0,0.0029141]
[1723372258502,2.15197555,61195.0,61194.0,0.0029141]
[1723372258717,2.04601293,61195.0,61194.0,0.0029141]
[1723372258906,2.11020852,61195.0,61194.0,0.0029141]
[1723372259042,2.04604478,61195.0,61194.0,0.0029141]
[1723372259552,2.16788517,61195.0,61194.0,0.0029141]
[1723372259749,2.27327409,61195.0,61194.0,0.0029141]
[1723372260528,2.1514337,61195.0,61194.0,0.0029141]
[1723372260703,2.15147176,61195.0,61194.0,0.0029141]
[1723372260904,2.04608284,61195.0,61194.0,0.0029141]
[1723372261337,2.04424529,61195.0,61194.0,0.0029141]
[1723372261545,2.04608284,61195.0,61194.0,0.0029141]
[1723372262272,1.96348284,61195.0,61194.0,0.0029141]
[1723372262858,1.96339871,61195.0,61194.0,0.0029141]
[1723372264087,1.85559871,61195.0,61194.0,0.0029141]
[1723372264487,1.60382271,61195.0,61194.0,0.1904141]
[1723372264689,0.04247044,61195.0,61194.0,0.1904141]
[1723372264889,0.04243003,61195.0,61194.0,0.1904141]
[1723372265088,0.04243003,61195.0,61194.0,0.3048041]
[1723372265485,0.03143003,61195.0,61194.0,0.43952949]
[1723372265848,0.00266955,61203.0,61199.0,0.114379]
[1723372266059,0.00266955,61203.0,61194.0,0.36868544]
[1723372266289,0.01557561,61202.0,61201.0,0.301877]
[1723372266507,0.01557561,61202.0,61201.0,0.530631]
[1723372266930,0.000832,61203.0,61202.0,0.530625]
[1723372267157,0.000832,61203.0,61202.0,0.759375]
[1723372268235,0.005832,61203.0,61202.0,0.759375]
[1723372268384,0.000832,61203.0,61202.0,0.759375]
[1723372268732,0.000832,61203.0,61202.0,0.530625]
[1723372268941,0.000832,61203.0,61202.0,0.533625]
[1723372269376,0.000832,61203.0,61202.0,0.304875]
[1723372269634,0.000832,61203.0,61202.0,0.1905]
[1723372269851,0.000832,61203.0,61202.0,0.304875]
[1723372272473,0.00266955,61203.0,61202.0,0.762375]
[1723372272680,0.000832,61203.0,61202.0,0.991125]
[1723372272859,0.000832,61203.0,61202.0,0.762375]
[1723372273910,0.000832,61203.0,61202.0,0.991125]
[1723372275358,0.000832,61203.0,61202.0,1.12681049]
[1723372277531,0.000832,61203.0,61202.0,1.12680315]
[1723372279172,0.000832,61203.0,61202.0,1.52936807]
[1723372280894,0.000832,61203.0,61202.0,1.53028327]
[1723372281530,0.000832,61203.0,61202.0,1.55028327]